bitfinex-derivatives/quotes_SOLF0:USTF0_20250719
["timestamp","ask_amount","ask_price","bid_price","bid_amount"]
[1752889262780,3.06,176.68,176.65,3.31]
[1752889263082,3.06,176.68,176.65,3.34872103]
[1752889263276,5.6559,176.68,176.66,3.31]
[1752889263576,3.06,176.67,176.66,3.31]
[1752889264177,3.06,176.68,176.66,3.31]
[1752889267186,4.44100472,176.68,176.66,3.31]
[1752889269581,3.06,176.67,176.66,3.31]
[1752889270285,4.44100472,176.68,176.66,3.31]
[1752889270981,3.06,176.68,176.66,3.31]
[1752889271178,73.73315667,176.73,176.66,1.38100472]
[1752889271179,1.38100472,176.7,176.66,1.38100472]
[1752889271379,1.38100472,176.69,176.67,3.31]
[1752889271582,4.44100472,176.69,176.67,3.31]
[1752889271786,1.38100472,176.68,176.67,3.31]
[1752889272285,8.7158,176.69,176.67,3.31]
[1752889272483,1.38100472,176.69,176.67,3.31]
[1752889273387,10.09640472,176.7,176.67,3.31]
[1752889274584,3.06,176.69,176.67,3.31]
[1752889274989,7.03640472,176.7,176.67,3.31]
[1752889275187,10.09640472,176.7,176.67,3.31]
[1752889275790,10.09640472,176.7,176.68,3.31]
[1752889276187,5.6556,176.69,176.68,3.31]
[1752889276382,8.7156,176.69,176.68,3.31]
[1752889276690,3.06,176.69,176.68,3.31]
[1752889279992,3.06,176.7,176.68,3.31]
[1752889280193,4.44100472,176.7,176.68,3.31]
[1752889280594,3.06,176.7,176.68,3.31]
[1752889280797,1.38100472,176.7,176.68,3.31]
[1752889281295,4.44100472,176.7,176.68,3.31]
[1752889281491,4.44100472,176.71,176.69,3.31]
[1752889281892,4.44100472,176.71,176.69,5.6556]
[1752889282093,3.06,176.73,176.7,3.31]
[1752889282394,4.44100472,176.72,176.7,3.31]
[1752889283294,4.44100472,176.73,176.71,3.31]
[1752889283490,4.44100472,176.72,176.71,3.31]
[1752889283793,3.06,176.73,176.71,3.31]
[1752889283993,1.38100472,176.72,176.71,3.31]
[1752889284193,4.44100472,176.72,176.71,3.31]
[1752889285897,1.38100472,176.72,176.71,3.31]
[1752889286196,3.1,176.73,176.71,3.31]
[1752889286404,4.48100472,176.73,176.71,3.31]
[1752889286797,4.48100472,176.73,176.72,3.05]
[1752889288201,3.1,176.73,176.72,3.05]
[1752889288396,4.48100472,176.73,176.72,3.05]
[1752889289201,10.13530472,176.73,176.72,3.05]
[1752889290103,4.48100472,176.73,176.72,3.05]
[1752889290802,10.13530472,176.73,176.72,3.05]
[1752889290991,8.7543,176.73,176.72,3.05]
[1752889291195,10.13530472,176.73,176.72,3.05]
[1752889293106,3.1,176.73,176.72,3.05]
[1752889293306,4.48100472,176.73,176.72,3.05]
[1752889297513,3.1,176.73,176.72,3.05]
[1752889297715,4.48100472,176.73,176.72,3.05]
[1752889300110,3.1,176.73,176.72,3.05]
[1752889300320,1.38100472,176.73,176.72,3.05]
[1752889301115,4.48100472,176.73,176.72,3.05]
[1752889301515,1.38100472,176.73,176.72,3.05]
[1752889302112,4.48100472,176.73,176.72,3.05]
[1752889302917,3.1,176.76,176.73,3.05]
[1752889303116,3.1,176.74,176.73,3.05]
[1752889305217,3.1,176.8,176.73,1.38100472]
[1752889305417,4.48100472,176.76,176.74,3.05]
[1752889305620,1.38100472,176.76,176.74,3.05]
[1752889305818,4.48100472,176.76,176.74,3.05]
[1752889306119,3.1,176.76,176.74,3.05]
[1752889306418,1.38100472,176.75,176.74,3.05]
[1752889306718,4.48100472,176.75,176.74,3.05]
[1752889308819,3.1,176.74,176.73,0.03756515]
[1752889309025,4.48100472,176.74,176.73,0.03756515]
[1752889309525,4.48100472,176.74,176.7,3.05]
[1752889309827,3.1,176.7,176.69,3.05]
[1752889310025,4.48100472,176.7,176.69,3.05]
[1752889310520,1.38100472,176.7,176.68,3.05]
[1752889310826,3.1,176.69,176.68,3.05]
[1752889311020,1.38100472,176.69,176.68,3.05]
[1752889311324,4.48100472,176.69,176.68,3.05]
[1752889312820,4.48100472,176.69,176.67,3.05]
[1752889313128,3.1,176.67,176.61,4.70216455]
[1752889313322,4.48100472,176.65,176.63,3.05]
[1752889314320,3.22,176.69,176.64,7.03810472]
[1752889314522,10.25680472,176.69,176.66,3.12]
[1752889314728,1.38100472,176.68,176.66,3.12]
[1752889314930,1.38100472,176.67,176.66,3.12]
[1752889317329,4.60100472,176.68,176.66,3.12]
[1752889317529,4.60100472,176.68,176.66,5.6565]
[1752889317732,4.60100472,176.68,176.67,3.12]
[1752889318230,1.38100472,176.68,176.67,3.12]
[1752889318624,4.60100472,176.68,176.67,3.12]
[1752889320334,3.22,176.67,176.59,6.07882302]
[1752889320534,4.60100472,176.64,176.61,3.12]
[1752889320732,4.60100472,176.64,176.61,4.50100472]
[1752889320930,1.38100472,176.65,176.63,3.12]
[1752889321130,1.38100472,176.66,176.63,3.12]
[1752889321432,10.25760472,176.66,176.63,8.7775]
[1752889321632,4.60100472,176.65,176.64,3.12]
[1752889322835,3.22,176.65,176.64,3.12]
[1752889323025,4.60100472,176.65,176.64,3.12]
[1752889324835,3.22,176.64,176.62,3.12]
[1752889325037,4.60100472,176.63,176.62,3.12]
[1752889325436,3.22,176.63,176.62,3.12]
[1752889327634,1.38100472,176.64,176.62,3.12]
[1752889327835,4.60100472,176.64,176.62,3.12]
[1752889328536,10.25830472,176.64,176.62,3.12]
[1752889328736,3.22,176.63,176.62,3.12]
[1752889329337,4.60100472,176.64,176.62,3.12]
[1752889329837,3.22,176.63,176.62,3.12]
[1752889330039,3.22,176.62,176.58,3.12]
[1752889330338,1.38100472,176.59,176.56,3.12]
[1752889330531,3.22,176.57,176.56,3.12]
[1752889330733,4.60100472,176.59,176.56,3.12]
[1752889331540,4.60100472,176.59,176.57,3.12]
[1752889332139,4.60100472,176.59,176.58,3.12]
[1752889332941,3.22,176.59,176.58,3.12]
[1752889334140,5.6587,176.6,176.58,3.12]
[1752889334345,2.16010813,176.62,176.58,5.6591]
[1752889334540,3.22,176.6,176.58,5.6591]
[1752889334944,3.22,176.62,176.57,3.12]
[1752889335137,2.16010813,176.63,176.57,3.12]
[1752889335445,3.22,176.61,176.57,3.12]
[1752889335642,3.22,176.61,176.58,5.6589]
[1752889335847,3.22,176.6,176.5,108.1778183]
[1752889336047,3.22,176.6,176.55,2.16010813]
[1752889336346,3.22,176.6,176.57,5.6592]
[1752889336546,3.22,176.6,176.58,3.12]
[1752889337148,3.22,176.6,176.59,3.12]
[1752889339449,3.22,176.6,176.57,3.12]
[1752889340246,3.22,176.59,176.57,3.12]
[1752889340650,8.8788,176.59,176.57,3.12]
[1752889340851,3.22,176.58,176.57,3.12]
[1752889341054,3.22,176.58,176.51,3.12]
[1752889341252,3.22,176.56,176.51,3.12]
[1752889341448,3.22,176.55,176.51,3.12]
[1752889342054,3.22,176.56,176.54,5.6601]
[1752889342255,3.22,176.56,176.55,3.12]
[1752889342854,3.22,176.56,176.55,8.7801]
[1752889343249,2.16010813,176.57,176.55,3.12]
[1752889343454,3.22,176.59,176.58,3.12]
[1752889345159,3.24,176.61,176.59,3.03]
[1752889346055,2.16010813,176.62,176.56,2.16010813]
[1752889346358,5.40010813,176.62,176.61,3.03]
[1752889348458,3.24,176.61,176.6,3.03]
[1752889348758,3.24,176.61,176.55,3.03]
[1752889348958,3.24,176.61,176.59,5.6587]
[1752889349155,3.24,176.61,176.6,3.03]
[1752889349650,3.24,176.61,176.6,8.6885]
[1752889350057,5.40010813,176.62,176.61,3.03]
[1752889351856,5.40010813,176.64,176.61,3.03]
[1752889352356,5.40010813,176.67,176.61,3.03]
[1752889352561,3.24,176.67,176.63,3.03]
[1752889353754,5.40010813,176.68,176.66,3.03]
[1752889353965,3.24,176.68,176.66,3.03]
[1752889354260,3.24,176.68,176.67,3.03]
[1752889362067,2.16010813,176.68,176.6,3.03]
[1752889362263,2.16010813,176.68,176.61,3.03]
[1752889362264,3.24,176.67,176.61,3.03]
[1752889362669,2.16010813,176.66,176.6,2.16010813]
[1752889362964,3.24,176.65,176.61,3.03]
[1752889363763,3.24,176.65,176.61,5.6579]
[1752889363960,3.24,176.65,176.62,3.03]
[1752889364669,3.24,176.65,176.63,3.03]
[1752889367869,5.6569,176.65,176.63,3.03]
[1752889368169,3.24,176.64,176.63,3.03]
[1752889369262,5.6572,176.64,176.58,2.16010813]
[1752889369467,5.6572,176.64,176.57,108.24077457]
[1752889369468,3.24,176.63,176.6,3.03]
[1752889369775,2.16010813,176.68,176.57,108.24077457]
[1752889369776,3.24,176.61,176.59,3.03]
[1752889370466,3.24,176.6,176.57,113.90007457]
[1752889370966,2.16010813,176.62,176.57,108.24077457]
[1752889371167,2.16010813,176.64,176.58,5.19010813]
[1752889371369,5.40010813,176.64,176.59,3.03]
[1752889372174,3.24,176.63,176.59,3.03]
[1752889372574,3.24,176.63,176.6,5.6582]
[1752889372776,3.24,176.63,176.61,3.03]
[1752889374976,3.02,176.62,176.6,5.6582]
[1752889375376,3.02,176.62,176.61,3.11]
[1752889376170,3.02,176.63,176.61,3.11]
[1752889376779,3.02,176.62,176.61,3.11]
[1752889377985,3.02,176.63,176.61,3.11]
[1752889378579,3.02,176.62,176.61,3.11]
[1752889379781,5.18010813,176.62,176.58,3.11]
[1752889379981,3.02,176.61,176.58,3.11]
[1752889380279,3.02,176.6,176.58,3.11]
[1752889380678,2.16010813,176.62,176.58,8.769]
[1752889380878,3.02,176.61,176.59,3.11]
[1752889381080,3.02,176.6,176.59,3.11]
[1752889381286,3.02,176.61,176.59,3.11]
[1752889382585,3.02,176.6,176.59,3.11]
[1752889383287,3.02,176.61,176.59,3.11]
[1752889385881,5.6579,176.62,176.59,3.11]
[1752889386082,8.6779,176.62,176.59,3.11]
[1752889387187,3.02,176.61,176.59,3.11]
[1752889388290,8.6779,176.62,176.59,3.11]
[1752889388786,8.6779,176.62,176.59,8.7687]
[1752889389087,8.6779,176.62,176.6,3.11]
[1752889390891,3.02,176.62,176.6,3.11]
[1752889392895,1.38210087,176.61,176.6,3.11]
[1752889393095,1.38210087,176.63,176.62,3.11]
[1752889393495,4.40210087,176.63,176.62,3.11]
[1752889395891,4.40210087,176.63,176.57,108.24077457]
[1752889396097,4.40210087,176.59,176.55,1.38210087]
[1752889396595,4.40210087,176.59,176.56,3.11]
[1752889397189,3.02,176.59,176.56,3.11]
[1752889397394,4.40210087,176.59,176.56,3.11]
[1752889397697,4.40210087,176.59,176.57,3.11]
[1752889398398,4.40210087,176.6,176.58,3.11]
[1752889398899,8.6785,176.6,176.58,3.11]
[1752889399692,7.818118,176.61,176.58,8.7691]
[1752889399890,5.179918,176.63,176.59,3.11]
[1752889400097,3.02,176.62,176.59,3.11]
[1752889400899,3.02,176.62,176.6,3.11]
[1752889401798,8.6778,176.62,176.6,3.11]
[1752889402399,5.6578,176.62,176.6,3.11]
[1752889402591,3.02,176.61,176.58,5.659]
[1752889403101,3.02,176.61,176.59,5.6588]
[1752889403400,3.02,176.61,176.6,3.11]
[1752889404201,3.02,176.62,176.6,3.11]
[1752889405097,3.12,176.61,176.6,3.11]
[1752889407001,3.12,176.62,176.6,3.11]
[1752889407401,3.12,176.61,176.6,3.11]
[1752889408502,3.12,176.61,176.58,3.03]
[1752889408503,3.12,176.6,176.58,3.03]
[1752889408904,3.12,176.6,176.56,3.03]
[1752889409202,3.12,176.59,176.56,3.03]
[1752889409800,3.12,176.59,176.56,8.6897]
[1752889410001,3.12,176.58,176.57,3.03]
[1752889412199,2.159918,176.59,176.56,3.03]
[1752889412404,3.12,176.56,176.54,3.03]
[1752889413003,2.159918,176.57,176.53,108.18745327]
[1752889413004,3.12,176.55,176.53,108.18745327]
[1752889413210,3.12,176.56,176.52,4.70565269]
[1752889413400,8.7798,176.56,176.53,3.03]
[1752889413604,3.12,176.55,176.53,3.03]
[1752889413806,3.12,176.56,176.53,3.03]
[1752889414508,3.12,176.56,176.53,8.6906]
[1752889414710,3.12,176.56,176.54,3.03]
[1752889415402,8.7798,176.56,176.54,3.03]
[1752889416710,8.7798,176.56,176.49,10.36745269]
[1752889416711,5.6607,176.53,176.49,10.36745269]
[1752889416917,3.12,176.52,176.51,3.03]
[1752889418613,8.781,176.52,176.51,3.03]
[1752889418809,3.12,176.52,176.48,3.03]
[1752889419008,3.12,176.48,176.44,4.70565269]
[1752889419307,3.12,176.46,176.45,3.03]
[1752889420415,8.783,176.46,176.43,3.03]
[1752889420609,3.12,176.45,176.44,3.03]
[1752889421109,2.159918,176.45,176.42,3.03]
[1752889421314,3.12,176.42,176.41,3.03]
[1752889425813,5.279918,176.45,176.41,3.03]
[1752889426008,2.159918,176.45,176.41,3.03]
[1752889426418,2.159918,176.45,176.42,3.03]
[1752889426716,5.279918,176.45,176.42,3.03]
[1752889427217,10.943218,176.45,176.42,3.03]
[1752889427817,8.7836,176.44,176.42,3.03]
[1752889428018,8.7836,176.44,176.4,5.6648]
[1752889428219,8.7836,176.44,176.43,3.03]
[1752889429019,5.6639,176.43,176.39,5.6651]
[1752889429314,3.12,176.42,176.37,3.03]
[1752889429521,3.12,176.41,176.38,5.6654]
[1752889429722,3.12,176.41,176.39,3.03]
[1752889431419,7.823918,176.43,176.4,3.03]
[1752889431621,3.12,176.42,176.4,3.03]
[1752889433514,7.823918,176.43,176.4,3.03]
[1752889433720,3.12,176.43,176.41,3.03]
[1752889433919,5.279918,176.43,176.41,3.03]
[1752889434115,3.12,176.45,176.41,5.6643]
[1752889434319,2.159918,176.44,176.42,3.03]
[1752889434719,5.249918,176.44,176.42,3.03]
[1752889434925,10.913518,176.44,176.42,3.03]
[1752889435823,5.249918,176.44,176.42,3.03]
[1752889436724,2.159918,176.44,176.42,5.6642]
[1752889436926,2.159918,176.44,176.43,3.05]
[1752889437222,2.159918,176.46,176.39,2.159918]
[1752889437419,2.159918,176.48,176.44,3.05]
[1752889437824,2.159918,176.48,176.45,5.6633]
[1752889438027,10.912518,176.48,176.46,3.05]
[1752889438626,10.912518,176.48,176.44,5.6635]
[1752889438824,10.912518,176.48,176.47,3.05]
[1752889440626,2.159918,176.48,176.47,3.05]
[1752889440829,5.249918,176.48,176.47,3.05]
[1752889441126,3.09,176.47,176.46,3.05]
[1752889444327,11.3163,176.61,176.46,3.05]
[1752889444529,5.249918,176.54,176.48,3.05]
[1752889445134,5.249918,176.54,176.5,5.6614]
[1752889445328,5.249918,176.54,176.51,3.05]
[1752889446035,3.09,176.53,176.49,2.159918]
[1752889446235,3.09,176.53,176.52,3.05]
[1752889447447,8.7507,176.53,176.52,3.05]
[1752889447832,5.6607,176.53,176.52,3.05]
[1752889448735,8.7507,176.53,176.52,3.05]
[1752889454937,2.19919364,176.54,176.51,0.03581618]
[1752889454938,8.751,176.52,176.51,0.03581618]
[1752889455139,10.910918,176.52,176.51,0.03581618]
[1752889456039,3.09,176.5,176.48,3.05]
[1752889456243,5.249918,176.5,176.48,3.05]
[1752889456441,3.09,176.49,176.48,3.05]
[1752889456641,8.7521,176.49,176.48,3.05]
[1752889456837,3.09,176.49,176.48,3.05]
[1752889457437,7.86414437,176.5,176.48,3.05]
[1752889457643,0.04232637,176.5,176.48,3.05]
[1752889458043,0.04232637,176.5,176.49,5.662]
[1752889458242,0.04232637,176.5,176.49,8.712]
[1752889458643,0.04232637,176.5,176.49,3.05]
[1752889460247,0.04232637,176.5,176.49,8.712]
[1752889461844,2.159918,176.56,176.52,3.05]
[1752889462044,5.249918,176.56,176.52,3.05]
[1752889462440,5.6604,176.55,176.52,3.05]
[1752889462640,104.06,176.61,176.53,3.05]
[1752889462844,3.09,176.57,176.53,3.05]
[1752889463050,5.6598,176.56,176.53,3.05]
[1752889463748,8.7498,176.56,176.53,3.05]
[1752889463952,8.7498,176.56,176.54,3.05]
[1752889464650,5.6598,176.56,176.54,3.05]
[1752889464843,8.7898,176.56,176.54,3.05]
[1752889465555,8.7898,176.56,176.55,3.23]
[1752889466255,8.7902,176.55,176.54,3.23]
[1752889466457,5.6602,176.55,176.53,3.23]
[1752889466757,3.13,176.54,176.53,3.23]
[1752889467451,2.159918,176.56,176.53,3.23]
[1752889467753,5.289918,176.56,176.53,3.23]
[1752889468054,5.289918,176.56,176.54,3.23]
[1752889468756,10.949718,176.56,176.54,3.23]
[1752889468955,10.949718,176.56,176.55,3.23]
[1752889469854,3.13,176.56,176.55,3.23]
[1752889470355,3.13,176.56,176.53,3.23]
[1752889470660,3.13,176.55,176.54,3.23]
[1752889470960,7.819418,176.57,176.54,3.23]
[1752889471256,3.13,176.56,176.54,3.23]
[1752889471657,3.13,176.56,176.55,3.23]
[1752889471959,5.6598,176.56,176.52,5.6609]
[1752889472169,3.13,176.54,176.53,3.23]
[1752889472656,3.13,176.55,176.53,3.23]
[1752889474164,3.13,176.56,176.52,3.23]
[1752889474364,3.13,176.54,176.52,3.23]
[1752889474561,3.13,176.51,176.47,3.23]
[1752889474762,3.13,176.51,176.47,5.6624]
[1752889474958,7.820918,176.52,176.48,3.23]
[1752889475164,3.13,176.5,176.48,3.23]
[1752889475462,7.820918,176.52,176.48,3.23]
[1752889475663,3.13,176.51,176.48,3.23]
[1752889476059,0.03640754,176.51,176.49,3.23]
[1752889476964,0.03640754,176.51,176.49,8.8919]
[1752889477162,0.03640754,176.51,176.5,3.23]
[1752889478167,3.13,176.5,176.49,3.23]
[1752889479660,0.03640754,176.51,176.49,3.23]
[1752889480066,3.16640754,176.51,176.49,3.23]
[1752889480668,8.82780754,176.51,176.49,3.23]
[1752889480969,0.03640754,176.51,176.49,3.23]
[1752889481962,0.03640754,176.51,176.5,3.23]
[1752889484867,0.03640754,176.51,176.5,8.8917]
[1752889485074,5.289918,176.56,176.5,3.23]
[1752889485477,8.7901,176.55,176.53,3.23]
[1752889488674,8.7904,176.54,176.53,3.23]
[1752889488870,3.13,176.53,176.52,0.04357839]
[1752889489272,3.13,176.53,176.52,3.27357839]
[1752889490480,8.7907,176.53,176.52,0.04357839]
[1752889491577,8.7907,176.53,176.52,3.27357839]
[1752889499391,8.7907,176.53,176.52,0.04357839]
[1752889499781,10.950618,176.53,176.52,0.04357839]
[1752889499985,10.950618,176.53,176.52,3.16357839]
[1752889500389,10.950618,176.53,176.52,0.04357839]
[1752889502795,3.18,176.49,176.48,3.12]
[1752889503092,5.339918,176.49,176.48,3.12]
[1752889503289,5.6623,176.48,176.46,3.12]
[1752889503488,5.6623,176.48,176.43,3.12]
[1752889503690,5.339918,176.49,176.43,3.12]
[1752889504595,11.001918,176.49,176.46,3.12]
[1752889505296,5.339918,176.51,176.46,3.12]
[1752889505797,11.001418,176.51,176.46,3.12]
[1752889505997,5.339918,176.51,176.46,3.12]
[1752889506899,8.8418,176.5,176.47,3.12]
[1752889507703,8.8421,176.49,176.47,3.12]
[1752889508196,3.18,176.46,176.42,6.85170796]
[1752889508398,8.8423,176.48,176.42,6.85170796]
[1752889508898,8.8423,176.48,176.45,3.12]
[1752889509290,3.18,176.48,176.45,3.12]
[1752889509496,5.339918,176.49,176.46,3.12]
[1752889509996,5.6624,176.48,176.46,3.12]
[1752889510392,2.159918,176.49,176.46,3.12]
[1752889510596,5.339918,176.51,176.46,3.12]
[1752889510995,8.8417,176.5,176.46,3.12]
[1752889511197,8.8417,176.5,176.47,3.12]
[1752889512099,3.18,176.5,176.47,8.7826]
[1752889512301,11.001318,176.51,176.48,3.12]
[1752889513198,3.18,176.5,176.48,3.12]
[1752889513399,8.8417,176.5,176.49,3.12]
[1752889513700,0.98632467,176.55,176.47,3.12]
[1752889513895,5.339918,176.54,176.51,3.12]
[1752889514390,8.8409,176.53,176.49,3.12]
[1752889514595,3.18,176.52,176.49,3.12]
[1752889515102,3.18,176.52,176.5,3.12]
[1752889516199,8.8412,176.52,176.51,3.12]
[1752889516803,8.8412,176.52,176.48,5.6622]
[1752889516999,8.8413,176.51,176.5,3.12]
[1752889517205,2.159918,176.52,176.47,5.6626]
[1752889517401,3.18,176.5,176.49,3.12]
[1752889518504,8.8417,176.5,176.49,3.12]
[1752889519804,3.18,176.49,176.48,3.12]
[1752889520300,8.842,176.49,176.48,3.12]
[1752889520601,3.18,176.49,176.47,3.12]
[1752889521199,3.18,176.48,176.47,3.12]
[1752889521501,3.18,176.49,176.47,3.12]
[1752889521700,5.339918,176.5,176.47,3.12]
[1752889523102,2.159918,176.5,176.48,3.12]
[1752889523303,5.6625,176.48,176.44,8.7835]
[1752889523504,5.6625,176.48,176.45,3.12]
[1752889523708,8.8425,176.48,176.45,3.12]
[1752889524503,8.8627,176.47,176.45,3.12]
[1752889524906,3.2,176.47,176.46,3.02]
[1752889525205,8.8626,176.47,176.46,3.02]
[1752889525704,3.2,176.45,176.43,3.02]
[1752889526013,3.2,176.45,176.44,3.02]
[1752889526508,8.8636,176.44,176.42,3.02]
[1752889527500,8.8636,176.44,176.4,4.70359132]
[1752889527700,8.8636,176.44,176.43,3.02]
[1752889528305,3.2,176.44,176.43,3.02]
[1752889528612,11.023318,176.45,176.42,3.02]
[1752889528803,3.2,176.41,176.4,3.02]
[1752889529904,8.8646,176.41,176.4,3.02]
[1752889531210,3.2,176.41,176.4,3.02]
[1752889531411,3.2,176.42,176.38,3.02]
[1752889532113,3.2,176.41,176.39,3.02]
[1752889532316,3.2,176.41,176.4,3.02]
[1752889534213,3.2,176.41,176.37,113.53382692]
[1752889534214,5.359918,176.41,176.37,113.53382692]
[1752889534512,3.2,176.38,176.32,3.02]
[1752889534713,3.2,176.36,176.32,3.02]
[1752889534913,3.2,176.35,176.32,3.02]
[1752889535911,3.2,176.34,176.33,3.02]
[1752889536411,8.867,176.34,176.29,5.6683]
[1752889536615,3.2,176.33,176.3,3.02]
[1752889537018,3.2,176.34,176.3,5.6678]
[1752889537212,2.159918,176.35,176.31,3.02]
[1752889537418,3.2,176.32,176.29,3.02]
[1752889537813,8.8677,176.32,176.29,3.02]
[1752889538015,3.2,176.31,176.29,3.02]
[1752889538312,3.2,176.3,176.29,3.02]
[1752889539216,3.2,176.29,176.28,3.02]
[1752889539619,5.359918,176.31,176.28,3.02]
[1752889540312,11.027718,176.31,176.28,3.02]
[1752889541515,5.359918,176.32,176.28,3.02]
[1752889541917,11.027718,176.32,176.28,8.6887]
[1752889542211,3.2,176.31,176.29,3.02]
[1752889542518,8.8678,176.31,176.29,3.02]
[1752889542912,3.2,176.31,176.24,2.159918]
[1752889543118,3.2,176.31,176.25,3.02]
[1752889543319,3.2,176.29,176.23,3.02]
[1752889543520,2.159918,176.28,176.23,3.02]
[1752889543720,3.2,176.27,176.24,3.02]
[1752889544322,5.359918,176.3,176.27,3.02]
[1752889544623,3.2,176.29,176.28,3.02]
[1752889544820,8.8686,176.29,176.28,3.02]
[1752889545018,3.2,176.29,176.28,3.02]
[1752889545715,8.8684,176.29,176.28,3.02]
[1752889546423,5.6684,176.29,176.25,3.02]
[1752889546624,3.2,176.28,176.25,3.02]
[1752889546920,5.6684,176.29,176.25,3.02]
[1752889547225,3.2,176.27,176.26,3.02]
[1752889547823,2.159918,176.3,176.26,3.02]
[1752889548023,5.359918,176.3,176.26,3.02]
[1752889548224,3.2,176.29,176.26,3.02]
[1752889548420,3.2,176.29,176.23,3.02]
[1752889548926,3.2,176.29,176.22,106.079918]
[1752889548927,3.2,176.28,176.26,3.02]
[1752889550331,3.2,176.28,176.26,5.6693]
[1752889550526,3.2,176.28,176.27,3.02]
[1752889551230,8.8687,176.28,176.27,3.02]
[1752889552132,2.159918,176.28,176.25,3.02]
[1752889552335,3.2,176.27,176.25,3.02]
[1752889552836,2.159918,176.26,176.23,3.02]
[1752889553035,3.2,176.24,176.23,3.02]
[1752889553331,3.2,176.25,176.23,3.02]
[1752889553931,8.8698,176.25,176.24,3.02]
[1752889554137,3.2,176.25,176.24,3.02]
[1752889556134,5.399918,176.26,176.25,3.14]
[1752889556441,11.069318,176.26,176.25,3.14]
[1752889556739,3.24,176.25,176.24,3.14]
[1752889557040,8.9097,176.25,176.24,3.14]
[1752889557233,3.24,176.25,176.24,3.14]
[1752889557734,3.24,176.25,176.18,5.299918]
[1752889558033,5.6705,176.23,176.19,8.8114]
[1752889558334,3.24,176.22,176.2,3.14]
[1752889558728,3.24,176.22,176.21,3.14]
[1752889559236,2.159918,176.22,176.19,3.14]
[1752889559437,2.159918,176.26,176.19,3.14]
[1752889559438,5.399918,176.2,176.19,3.14]
[1752889560034,11.071418,176.2,176.19,3.14]
[1752889560237,5.399918,176.22,176.19,3.14]
[1752889560537,5.6703,176.24,176.2,5.6711]
[1752889560734,3.24,176.24,176.21,3.14]
[1752889561032,3.24,176.23,176.22,3.14]
[1752889561334,8.9103,176.23,176.22,3.14]
[1752889561635,5.399918,176.23,176.21,3.14]
[1752889561930,5.6707,176.22,176.21,3.14]
[1752889562138,3.24,176.22,176.09,3.14]
[1752889562346,3.24,176.19,176.14,3.14]
[1752889562727,3.24,176.18,176.14,3.14]
[1752889563136,2.159918,176.2,176.14,3.14]
[1752889564332,2.159918,176.2,176.16,3.14]
[1752889564827,5.399918,176.2,176.18,3.14]